bitfinex/quotes_ETHUSD_20251130
["timestamp","ask_amount","ask_price","bid_price","bid_amount"]
[1764499005296,3.35416953,3013.0,3012.9,0.2028]
[1764499005500,3.45416953,3013.0,3012.9,0.2028]
[1764499013906,3.35416953,3013.0,3012.9,0.4046]
[1764499016381,3.32095121,3013.0,3012.9,0.4046]
[1764499016578,0.002,3013.0,3012.9,0.4046]
[1764499017812,0.002,3013.0,3012.9,7.30235179]
[1764499018405,0.002,3013.0,3012.9,4.08586958]
[1764499020514,0.002,3013.0,3012.9,0.76680822]
[1764499021017,0.002,3013.0,3012.9,4.08586958]
[1764499022507,0.002,3013.0,3012.9,0.89978274]
[1764499022908,0.002,3013.0,3012.9,4.2188441]
[1764499023230,0.002,3013.0,3012.9,0.33577452]
[1764499023442,0.4668,3013.0,3012.9,0.001]
[1764499023594,1.06601832,3013.0,3012.9,0.001]
[1764499024292,4.38496953,3013.0,3012.9,0.001]
[1764499024492,3.91896953,3013.0,3012.9,0.001]
[1764499025088,4.38496953,3013.0,3012.9,0.001]
[1764499025324,5.51139849,3013.0,3012.9,0.001]
[1764499027818,8.86089325,3013.0,3012.9,0.001]
[1764499028018,8.82767493,3013.0,3012.9,0.001]
[1764499028714,9.23317893,3013.0,3012.9,0.001]
[1764499030996,5.55069672,3013.0,3012.9,0.001]
[1764499031194,5.58391504,3013.0,3012.9,0.001]
[1764499031527,6.04991504,3013.0,3012.9,0.001]
[1764499034133,9.26639725,3013.0,3012.9,0.001]
[1764499034433,9.23317893,3013.0,3012.9,0.001]
[1764499040512,0.13501255,3013.0,3012.9,0.2028]
[1764499040712,0.002,3013.0,3012.9,0.4046]
[1764499054532,0.002,3013.0,3012.9,0.2028]
[1764499054732,0.5937,3013.0,3012.9,0.001]
[1764499054956,0.102,3013.0,3012.9,0.001]
[1764499055326,0.102,3013.0,3012.9,0.2028]
[1764499057561,3.32095121,3013.0,3012.9,0.2028]
[1764499058062,3.32095121,3013.0,3012.9,0.4046]
[1764499058362,0.002,3013.0,3012.9,0.4046]
[1764499059059,3.32095121,3013.0,3012.9,0.4046]
[1764499060239,0.002,3013.0,3012.9,7.69790948]
[1764499060435,0.002,3013.0,3012.9,8.78742686]
[1764499060945,0.002,3013.0,3012.9,5.57196346]
[1764499061353,0.002,3013.0,3012.9,5.78096346]
[1764499063778,0.002,3013.0,3012.9,5.81415407]
[1764499063936,0.002,3013.0,3012.9,5.78096346]
[1764499064451,0.002,3013.0,3012.9,5.81415407]
[1764499064661,0.002,3013.0,3012.9,5.78096346]
[1764499066046,0.002,3013.0,3012.9,5.81415407]
[1764499066977,0.002,3013.0,3012.9,2.4619021]
[1764499067276,0.002,3013.0,3012.9,5.37016346]
[1764499068036,0.002,3013.0,3012.9,2.0511021]
[1764499068236,0.002,3013.0,3012.9,4.24745547]
[1764499069276,0.002,3013.0,3012.9,0.92839411]
[1764499069446,0.002,3013.0,3012.9,4.24745547]
[1764499069643,0.002,3013.0,3012.9,0.2028]
[1764499069848,0.002,3013.0,3012.9,0.001]
[1764499070072,0.4937,3013.0,3012.9,0.001]
[1764499070573,0.002,3013.0,3012.9,0.2028]
[1764499071077,0.002,3013.0,3012.9,0.86265667]
[1764499072678,0.002,3013.0,3012.9,4.18171803]
[1764499077482,0.002,3013.0,3012.9,3.94672742]
[1764499078274,0.002,3013.0,3012.9,3.97991803]
[1764499079482,0.002,3013.0,3012.9,4.18171803]
[1764499080788,0.002,3013.0,3012.9,3.97991803]
[1764499081464,0.002,3013.0,3012.9,4.18171803]
[1764499082674,0.002,3013.0,3012.9,3.97991803]
[1764499083758,0.002,3013.0,3012.9,4.18171803]
[1764499085287,0.002,3013.0,3012.9,4.14852742]
[1764499086294,0.002,3013.0,3012.9,4.18171803]
[1764499086599,0.002,3013.0,3012.9,4.14852742]
[1764499087089,0.002,3013.0,3012.9,5.11631214]
[1764499092792,0.002,3013.0,3012.9,5.08312153]
[1764499092995,0.002,3013.0,3012.9,4.88132153]
[1764499094603,0.002,3013.0,3012.9,5.08312153]
[1764499095099,0.002,3013.0,3012.9,5.11631214]
[1764499096198,0.002,3013.0,3012.9,5.08312153]
[1764499096398,0.002,3013.0,3012.9,5.11631214]
[1764499096770,0.002,3013.0,3012.9,5.08312153]
[1764499097074,0.002,3013.0,3012.9,4.88132153]
[1764499097280,0.002,3013.0,3012.9,4.91451214]
[1764499098002,0.002,3013.0,3012.9,4.70551214]
[1764499098201,0.002,3013.0,3012.9,4.88132153]
[1764499098702,0.002,3013.0,3012.9,4.91451214]
[1764499098902,0.002,3013.0,3012.9,4.88132153]
[1764499099068,0.4716,3013.0,3012.9,4.04565547]
[1764499099401,0.9286,3013.0,3012.9,0.72659411]
[1764499099603,0.9286,3013.0,3012.9,4.04565547]
[1764499100241,0.9286,3013.0,3012.9,0.72659411]
[1764499100573,0.9286,3013.0,3012.9,4.04565547]
[1764499101199,0.002,3013.0,3012.9,4.24745547]
[1764499101405,0.002,3013.0,3012.9,5.05830856]
[1764499103306,0.002,3013.0,3012.9,4.28064608]
[1764499108505,0.002,3013.0,3012.9,4.07884608]
[1764499110021,0.002,3013.0,3012.9,4.54324608]
[1764499111818,0.002,3013.0,3012.9,8.16230948]
[1764499112001,0.002,3013.0,3012.9,8.12911887]
[1764499112193,0.002,3013.0,3012.9,9.09314768]
[1764499112615,0.002,3013.0,3012.9,9.09196187]
[1764499114323,0.002,3013.0,3012.9,9.09196187]
[1764499120338,0.9551,3013.0,3012.9,4.51005547]
[1764499120533,0.9551,3013.0,3012.9,4.54324608]
[1764499122439,0.9551,3013.0,3012.9,4.51005547]
[1764499122765,0.9551,3013.0,3012.9,4.04565547]
[1764499126535,0.4907,3013.0,3012.9,4.04565547]
[1764499126741,0.002,3013.0,3012.9,7.25993306]
[1764499126912,0.002,3013.0,3012.9,8.63615329]
[1764499127541,0.002,3013.0,3012.9,8.76911897]
[1764499129338,0.4907,3013.0,3012.9,8.56731897]
[1764499129636,0.9551,3013.0,3012.9,7.39289874]
[1764499130039,0.4907,3013.0,3012.9,7.39289874]
[1764499130609,0.002,3013.0,3012.9,7.39289874]
[1764499131744,0.9551,3013.0,3012.9,7.39289874]
[1764499132733,0.4907,3013.0,3012.9,7.39289874]
[1764499133124,0.9753,3013.0,3012.9,7.39289874]
[1764499138435,0.4907,3013.0,3012.9,8.48510554]
[1764499138633,0.002,3013.0,3012.9,8.68690554]
[1764499145348,0.002,3013.0,3012.9,8.88870554]
[1764499145853,0.002,3013.0,3012.9,8.68690554]
[1764499147919,0.002,3013.0,3012.9,8.48510554]
[1764499150160,0.5002,3013.0,3012.9,7.39289874]
[1764499150336,0.9848,3013.0,3012.9,4.38762115]
[1764499152326,0.002,3013.0,3012.9,4.38762115]
[1764499152654,0.002,3013.0,3012.9,4.42081176]
[1764499152854,0.002,3013.0,3012.9,8.93241521]
[1764499153056,0.002,3013.0,3012.9,8.8992246]
[1764499153658,0.002,3013.0,3012.9,8.6974246]
[1764499153864,0.9848,3013.0,3012.9,5.48314701]
[1764499154027,0.9848,3013.0,3012.9,4.38762115]
[1764499154354,0.9848,3013.0,3012.9,4.17862115]
[1764499154561,0.5846,3012.9,3012.6,0.001]
[1764499154858,0.4982,3012.7,3012.6,0.001]
[1764499155232,0.9828,3012.7,3012.6,0.001]
[1764499157362,1.44607178,3012.7,3012.6,0.001]
[1764499157541,4.3020817,3012.7,3012.6,0.001]
[1764499158157,0.9828,3012.7,3012.6,0.001]
[1764499159336,4.3020817,3012.7,3012.6,0.001]
[1764499163041,4.4020817,3012.7,3012.6,0.001]
[1764499163246,4.5351,3012.7,3012.6,0.001]
[1764499163438,5.68263502,3012.7,3012.6,0.001]
[1764499166071,5.71585334,3012.7,3012.6,0.001]
[1764499169578,5.58283504,3012.7,3012.6,0.001]
[1764499178690,5.71586086,3012.7,3012.6,0.001]
[1764499188096,9.33892521,3012.7,3012.6,0.001]
[1764499188401,9.30570689,3012.7,3012.6,0.001]
[1764499193669,10.031301,3012.7,3012.6,0.001]
[1764499195314,6.81374065,3012.7,3012.6,0.001]
[1764499207924,5.83094065,3012.7,3012.6,0.001]
[1764499208126,3.45250002,3012.7,3012.6,0.2048]
[1764499208422,3.66150002,3012.7,3012.6,0.4086]
[1764499209497,3.66150002,3012.7,3012.6,0.2048]
[1764499210596,4.85806949,3012.7,3012.6,0.001]
[1764499210820,5.32406949,3012.7,3012.6,0.001]
[1764499213606,4.85806949,3012.7,3012.6,0.001]
[1764499214623,5.32406949,3012.7,3012.6,0.001]
[1764499216723,4.85806949,3012.7,3012.6,0.001]
[1764499219428,5.32406949,3012.7,3012.6,0.001]
[1764499223922,4.37306949,3012.7,3012.6,0.2048]
[1764499228146,4.37306949,3012.7,3012.6,0.001]
[1764499229820,4.37306949,3012.7,3012.6,0.2048]
[1764499230355,4.57786949,3012.7,3012.6,0.2048]
[1764499231152,5.03366949,3012.7,3012.6,0.001]
[1764499231737,5.51406949,3012.7,3012.6,0.001]
[1764499233465,3.86630002,3012.7,3012.6,0.2048]
[1764499239267,3.86630002,3012.7,3012.6,0.001]
[1764499239475,4.80250002,3012.7,3012.6,0.001]
[1764499240769,4.32210002,3012.7,3012.6,0.001]
[1764499241588,3.86630002,3012.7,3012.6,0.2048]
[1764499246292,4.58504739,3012.7,3012.6,0.2048]
[1764499246478,3.76630002,3012.7,3012.6,0.2048]
[1764499247255,3.55730002,3012.7,3012.6,0.2048]
[1764499247456,3.76630002,3012.7,3012.6,0.2048]
[1764499247684,3.86630002,3012.7,3012.6,0.2048]
[1764499249385,3.8330817,3012.7,3012.6,0.2048]
[1764499249591,3.8330817,3012.7,3012.6,0.4086]
[1764499249956,3.86630002,3012.7,3012.6,0.2048]
[1764499250157,0.2048,3012.7,3012.6,0.2048]
[1764499250368,0.002,3012.8,3012.6,0.75099328]
[1764499250659,0.002,3012.8,3012.7,0.2038]
[1764499250969,0.002,3012.8,3012.7,0.4076]
[1764499253992,0.002,3012.8,3012.7,0.2038]
[1764499256293,0.002,3012.8,3012.7,0.4076]
[1764499259094,0.002,3012.8,3012.7,0.2038]
[1764499264894,0.1,3012.7,3012.6,0.001]
[1764499265296,0.1,3012.7,3012.6,0.2048]
[1764499268309,3.45444163,3012.8,3012.6,0.2048]
[1764499269917,4.15173279,3012.7,3012.6,0.001]
[1764499270073,4.65723679,3012.7,3012.6,0.001]
[1764499270278,8.86836691,3012.7,3012.6,0.001]
[1764499270498,8.83514859,3012.7,3012.6,0.001]
[1764499281807,8.10955448,3012.7,3012.6,0.001]
[1764499282012,9.34735376,3012.7,3012.6,0.001]
[1764499287310,5.67562097,3012.7,3012.6,0.001]
[1764499287504,5.70883929,3012.7,3012.6,0.001]
[1764499287681,6.17193929,3012.7,3012.6,0.001]
[1764499291218,5.03233529,3012.7,3012.6,0.2048]
[1764499295130,5.50323529,3012.7,3012.6,0.001]
[1764499295468,5.96633529,3012.7,3012.6,0.001]
[1764499302435,5.50323529,3012.7,3012.6,0.001]
[1764499302598,9.58924526,3012.7,3012.6,0.001]
[1764499302798,9.55602694,3012.7,3012.6,0.001]
[1764499306530,6.33862097,3012.7,3012.6,0.001]
[1764499306746,5.43783929,3012.7,3012.6,0.001]
[1764499307516,5.90873929,3012.7,3012.6,0.001]
[1764499307902,5.22883929,3012.7,3012.6,0.2048]
[1764499308108,5.03233529,3012.7,3012.6,0.2048]
[1764499308336,3.79453601,3012.7,3012.6,0.2048]
[1764499309806,4.26543601,3012.7,3012.6,0.001]
[1764499310908,4.72853601,3012.7,3012.6,0.001]
[1764499311640,4.26543601,3012.7,3012.6,0.001]
[1764499311841,3.79453601,3012.7,3012.6,0.001]
[1764499312910,4.64726344,3012.7,3012.6,0.001]
[1764499313337,4.64726344,3012.7,3012.6,0.2048]
[1764499314542,3.79453601,3012.7,3012.6,0.2048]
[1764499314745,3.69453601,3012.7,3012.6,0.2048]
[1764499315117,3.79453601,3012.7,3012.6,0.2048]
[1764499319116,3.58553601,3012.7,3012.6,0.2048]
[1764499319326,3.79453601,3012.7,3012.6,0.2048]
[1764499322348,3.58553601,3012.7,3012.6,0.2048]
[1764499322545,3.79453601,3012.7,3012.6,0.2048]
[1764499323646,3.58553601,3012.7,3012.6,0.2048]
[1764499323942,3.79453601,3012.7,3012.6,0.2048]
[1764499324345,3.69453601,3012.7,3012.6,0.001]
[1764499324546,3.79453601,3012.7,3012.6,0.001]
[1764499328464,3.58553601,3012.7,3012.6,0.001]
[1764499328640,3.79453601,3012.7,3012.6,0.001]
[1764499328954,3.58553601,3012.7,3012.6,0.001]
[1764499329158,3.79453601,3012.7,3012.6,0.001]
[1764499330480,5.03710194,3012.7,3012.6,0.001]
[1764499330625,5.50900194,3012.7,3012.6,0.001]
[1764499332033,5.03710194,3012.7,3012.6,0.001]
[1764499332234,5.50900194,3012.7,3012.6,0.001]
[1764499337873,9.13191191,3012.7,3012.6,0.001]
[1764499338075,9.09869359,3012.7,3012.6,0.001]
[1764499339669,9.8242877,3012.7,3012.6,0.001]
[1764499349204,9.9242877,3012.7,3012.6,0.001]
[1764499354093,16.2842877,3012.7,3012.6,0.001]
[1764499356602,16.28550599,3012.7,3012.6,0.001]
[1764499383031,19.78550599,3012.7,3012.6,0.001]
[1764499383228,16.28550599,3012.7,3012.6,0.001]
[1764499386423,15.81360599,3012.7,3012.6,0.001]
[1764499386602,11.29667773,3012.7,3012.6,0.2048]
[1764499386930,11.29667773,3012.7,3012.6,0.4086]
[1764499386931,10.12131769,3012.7,3012.6,0.4086]
[1764499387113,10.8469118,3012.7,3012.6,0.4086]
[1764499387313,10.12131769,3012.7,3012.6,0.4086]
[1764499387735,11.2524158,3012.7,3012.6,0.4086]
[1764499388936,11.2524158,3012.7,3012.6,0.4086]
[1764499389801,4.8924158,3012.7,3012.6,0.4086]
[1764499390007,4.92563412,3012.7,3012.6,0.4086]
[1764499390540,4.52013012,3012.7,3012.6,0.4086]
[1764499393735,3.79453601,3012.7,3012.6,0.4086]
[1764499393942,3.69453601,3012.7,3012.6,0.4086]
[1764499394344,3.79453601,3012.7,3012.6,0.4086]
[1764499396535,3.69453601,3012.7,3012.6,0.4086]
[1764499396743,3.79453601,3012.7,3012.6,0.4086]
[1764499397532,3.76131769,3012.7,3012.6,0.4086]
[1764499397839,3.79453601,3012.7,3012.6,0.4086]
[1764499399142,3.76131769,3012.7,3012.6,0.4086]
[1764499399724,3.79453601,3012.7,3012.6,0.4086]
[1764499400612,3.69453601,3012.7,3012.6,0.4086]
[1764499400916,3.79453601,3012.7,3012.6,0.4086]
[1764499402445,3.76131769,3012.7,3012.6,0.4086]
[1764499404724,0.44203599,3012.7,3012.6,0.4086]
[1764499404922,0.309,3012.7,3012.6,0.4086]
[1764499405334,3.4192817,3012.7,3012.6,0.4086]
[1764499405549,3.6282817,3012.7,3012.6,0.4086]
[1764499406552,0.44381832,3012.8,3012.6,0.2048]
[1764499406853,0.002,3012.8,3012.7,0.4076]
[1764499407148,0.002,3012.8,3012.7,1.14321922]
[1764499409335,0.002,3012.8,3012.7,4.46250092]
[1764499410523,0.002,3012.8,3012.7,4.49569373]
[1764499411441,0.002,3012.8,3012.7,1.14321922]
[1764499411855,0.002,3012.8,3012.7,4.36184348]
[1764499413776,0.002,3012.8,3012.7,0.93941922]
[1764499413931,0.002,3012.8,3012.7,0.2038]
[1764499414134,0.002,3012.8,3012.7,0.4076]
[1764499415759,3.32117153,3012.8,3012.7,0.4076]
[1764499416342,3.32117153,3012.8,3012.7,0.2038]
[1764499416761,3.42117153,3012.8,3012.7,0.2038]
[1764499418464,3.32117153,3012.8,3012.7,0.4076]
[1764499419783,3.42117153,3012.8,3012.7,0.4076]
[1764499420277,3.42117153,3012.8,3012.7,0.2038]
[1764499427199,3.42117153,3012.8,3012.6,0.001]
[1764499427498,3.42117153,3012.8,3012.7,0.2038]
[1764499429062,3.42117153,3012.8,3012.6,0.001]
[1764499429262,0.03321832,3012.7,3012.6,0.001]
[1764499431192,0.03321832,3012.7,3012.6,0.2048]
[1764499432690,3.35250002,3012.7,3012.6,0.001]
[1764499433080,0.03321832,3012.7,3012.6,0.2048]
[1764499433395,3.42118355,3012.8,3012.6,0.2048]
[1764499433565,3.42118355,3012.8,3012.7,0.2038]
[1764499435676,3.45440187,3012.8,3012.7,0.2038]
[1764499436071,3.42118355,3012.8,3012.7,0.2038]
[1764499438774,3.45440187,3012.8,3012.7,0.2038]
[1764499439666,0.1,3012.7,3012.6,0.001]
[1764499440181,0.1,3012.7,3012.6,0.2048]
[1764499441202,3.45250002,3012.7,3012.6,0.2048]
[1764499441391,3.4192817,3012.7,3012.6,0.2048]
[1764499441589,4.3300817,3012.7,3012.6,0.001]
[1764499441803,3.45250002,3012.7,3012.6,0.001]
[1764499442302,3.91260002,3012.7,3012.6,0.001]
[1764499442502,4.36330002,3012.7,3012.6,0.001]
[1764499442676,5.15033838,3012.7,3012.6,0.001]
[1764499443879,3.45250002,3012.7,3012.6,0.2048]
[1764499444993,3.4192817,3012.7,3012.6,0.2048]
[1764499446192,3.45250002,3012.7,3012.6,0.2048]
[1764499447011,3.4192817,3012.7,3012.6,0.2048]
[1764499447219,0.1,3012.7,3012.6,0.2048]
[1764499447391,0.1,3012.7,3012.6,0.4086]
[1764499447595,0.1,3012.7,3012.6,0.2048]
[1764499447596,3.4192817,3012.7,3012.6,0.2048]
[1764499448008,3.4212817,3012.7,3012.6,0.2048]
[1764499448805,3.8813817,3012.7,3012.6,0.001]
[1764499449020,4.36530002,3012.7,3012.6,0.001]
[1764499453580,3.45450002,3012.7,3012.6,0.2048]
[1764499453786,3.3212817,3012.7,3012.6,0.2048]
[1764499454112,3.4212817,3012.7,3012.6,0.2048]
[1764499456730,3.4212817,3012.7,3012.6,0.001]
[1764499457467,4.36530002,3012.7,3012.6,0.001]
[1764499462231,3.91460002,3012.7,3012.6,0.001]
[1764499462436,3.91460002,3012.7,3012.6,0.2048]
[1764499462437,3.35450002,3012.7,3012.6,0.2048]
[1764499463907,3.45450002,3012.7,3012.6,0.2048]
[1764499466070,0.002,3012.7,3012.6,0.2048]
[1764499466207,3.3212817,3012.7,3012.6,0.4086]
[1764499466711,3.3212817,3012.7,3012.6,0.2048]
[1764499468240,0.002,3012.7,3012.6,0.2048]
[1764499469944,3.8118817,3012.7,3012.6,0.001]
[1764499470145,3.9118817,3012.7,3012.6,0.001]
[1764499471112,0.102,3012.7,3012.6,0.001]
[1764499473062,3.4212817,3012.7,3012.6,0.001]
[1764499475545,3.9118817,3012.7,3012.6,0.001]
[1764499475717,4.4007817,3012.7,3012.6,0.001]
[1764499476345,3.9118817,3012.7,3012.6,0.001]
[1764499477241,3.4212817,3012.7,3012.6,0.001]
[1764499477431,0.102,3012.7,3012.6,0.001]
[1764499477854,3.4212817,3012.7,3012.6,0.001]
[1764499478219,4.4007817,3012.7,3012.6,0.001]
[1764499481563,8.44370442,3012.7,3012.6,0.001]
[1764499481787,8.84920842,3012.7,3012.6,0.001]
[1764499481924,9.80784162,3012.7,3012.6,0.001]
[1764499483358,9.70784162,3012.7,3012.6,0.001]
[1764499496069,9.21894162,3012.7,3012.6,0.001]
[1764499496369,9.71584162,3012.7,3012.6,0.001]
[1764499499468,6.00194565,3012.7,3012.6,0.001]
[1764499499674,6.03516397,3012.7,3012.6,0.001]
[1764499499973,6.53206397,3012.7,3012.6,0.001]
[1764499500176,9.74905994,3012.7,3012.6,0.001]
[1764499500344,9.71584162,3012.7,3012.6,0.001]
[1764499501682,4.6854189,3012.7,3012.6,0.2048]
[1764499501845,0.13503909,3012.7,3012.6,0.2048]
[1764499502064,0.34403909,3012.7,3012.6,0.4086]
[1764499502267,0.44403909,3012.7,3012.6,0.2048]
[1764499502569,3.76332079,3012.7,3012.6,0.4086]
[1764499502769,3.76332079,3012.7,3012.6,0.2048]
[1764499508698,3.55432079,3012.7,3012.6,0.2048]
[1764499508897,3.76332079,3012.7,3012.6,0.2048]
[1764499510516,3.55432079,3012.7,3012.6,0.2048]
[1764499510717,3.76332079,3012.7,3012.6,0.2048]
[1764499513327,4.71622079,3012.7,3012.6,0.001]
[1764499513821,4.74943911,3012.7,3012.6,0.001]
[1764499514016,5.20320561,3012.7,3012.6,0.001]
[1764499518217,6.33430372,3012.7,3012.6,0.001]
[1764499525418,6.43430372,3012.7,3012.6,0.001]
[1764499530934,6.33430372,3012.7,3012.6,0.001]
[1764499542017,5.38140372,3012.7,3012.6,0.001]
[1764499543348,6.34290372,3012.7,3012.6,0.001]
[1764499552160,4.52213322,3012.7,3012.6,0.001]
[1764499552355,4.97373322,3012.7,3012.6,0.001]
[1764499552857,5.46843322,3012.7,3012.6,0.001]
[1764499554528,4.97373322,3012.7,3012.6,0.001]
[1764499554730,4.52213322,3012.7,3012.6,0.001]
[1764499559062,4.97373322,3012.7,3012.6,0.001]
[1764499559269,5.46843322,3012.7,3012.6,0.001]
[1764499560671,10.32128718,3012.7,3012.6,0.001]
[1764499560840,10.28806886,3012.7,3012.6,0.001]
[1764499562269,16.54806886,3012.7,3012.6,0.001]
[1764499562478,0.4516,3012.4,3012.2,0.001]
[1764499562634,4.11146094,3012.3,3012.2,0.001]
[1764499562840,5.65370514,3012.3,3012.2,0.001]
[1764499563137,9.60120122,3012.3,3012.2,0.001]
[1764499563338,9.5679829,3012.3,3012.2,0.001]
[1764499569994,9.4679829,3012.3,3012.2,0.001]
[1764499570194,9.5679829,3012.3,3012.2,0.001]
[1764499571163,6.35034028,3012.3,3012.2,0.001]
[1764499571370,9.60120122,3012.3,3012.2,0.001]
[1764499571569,9.5679829,3012.3,3012.2,0.001]
[1764499573872,15.9279829,3012.3,3012.2,0.001]
[1764499575301,19.4279829,3012.3,3012.2,0.001]
[1764499580608,15.5224789,3012.3,3012.2,0.001]
[1764499580838,15.9279829,3012.3,3012.2,0.001]
[1764499581675,16.29701629,3012.3,3012.2,0.001]
[1764499582073,15.9279829,3012.3,3012.2,0.001]
[1764499583819,19.4279829,3012.3,3012.2,0.001]
[1764499587905,15.7189829,3012.3,3012.2,0.001]
[1764499588137,15.9279829,3012.3,3012.2,0.001]
[1764499591336,16.29701629,3012.3,3012.2,0.001]
[1764499592223,44.90552729,3012.3,3012.2,0.001]
[1764499592940,27.0693899,3012.3,3012.2,0.001]
[1764499593155,19.4279829,3012.3,3012.2,0.001]
[1764499593320,31.4246289,3012.3,3012.2,0.001]
[1764499593505,31.1831289,3012.3,3012.2,0.001]
[1764499594004,30.9202919,3012.3,3012.2,0.001]
[1764499594233,30.9964929,3012.3,3012.2,0.001]
[1764499594805,29.1519729,3012.3,3012.2,0.001]
[1764499595239,35.7864519,3012.3,3012.2,0.001]
[1764499596322,35.6386029,3012.3,3012.2,0.001]
[1764499597635,35.6406029,3012.3,3012.2,0.001]
[1764499598320,35.9533849,3012.3,3012.2,0.001]
[1764499598516,1.13109811,3012.2,3011.5,0.001]
[1764499598727,5.04174073,3011.8,3011.5,0.001]
[1764499599015,8.60423264,3011.8,3011.5,0.001]
[1764499599230,8.70411716,3011.8,3011.5,0.001]
[1764499601227,7.90211716,3011.8,3011.5,0.001]
[1764499601448,9.25661549,3011.8,3011.7,0.2048]
[1764499602555,9.25907235,3011.8,3011.7,0.2048]
[1764499602748,9.25907235,3011.8,3011.7,0.001]
[1764499602749,10.24247235,3011.8,3011.7,0.001]
[1764499603217,9.75207235,3011.8,3011.7,0.001]
[1764499603958,9.25907235,3011.8,3011.7,0.001]
[1764499608570,4.27897054,3011.8,3011.7,0.4086]
[1764499608862,4.52118886,3011.8,3011.7,0.4086]
[1764499609163,3.58659475,3011.8,3011.7,0.4086]
[1764499609354,4.52118886,3011.8,3011.7,0.4086]
[1764499609658,3.79559475,3011.8,3011.7,0.4086]
[1764499611561,3.79559475,3011.8,3011.7,0.2048]
[1764499612141,3.79559475,3011.8,3011.7,0.4086]
[1764499612365,3.79559475,3011.8,3011.7,0.2048]
[1764499614569,3.79559475,3011.8,3011.7,0.4086]
[1764499617477,3.76237643,3011.8,3011.7,0.4086]
[1764499617770,3.66237643,3011.8,3011.7,0.4086]
[1764499617954,3.76237643,3011.8,3011.7,0.4086]
[1764499620147,3.55337643,3011.8,3011.7,0.4086]
[1764499620347,3.76237643,3011.8,3011.7,0.4086]
[1764499621379,3.55337643,3011.8,3011.7,0.4086]
[1764499621580,3.76237643,3011.8,3011.7,0.4086]
[1764499622642,3.55337643,3011.8,3011.7,0.4086]
[1764499622842,3.76237643,3011.8,3011.7,0.4086]
[1764499625575,3.79559475,3011.8,3011.7,0.2048]
[1764499625915,3.79559475,3011.8,3011.7,0.4086]
[1764499627650,0.002,3011.9,3011.7,0.4086]
[1764499627850,0.002,3011.9,3011.8,0.77056995]
[1764499628074,0.002,3011.9,3011.8,3.99066943]
[1764499628485,0.002,3011.9,3011.8,0.77056995]
[1764499634174,0.002,3011.9,3011.8,4.12404627]
[1764499635860,0.002,3011.9,3011.8,0.80377268]
[1764499637494,0.002,3011.9,3011.8,4.12404627]
[1764499638661,0.002,3011.9,3011.8,4.09084354]
[1764499643563,0.002,3011.9,3011.8,4.84964038]
[1764499648707,0.002,3011.9,3011.8,4.85064038]
[1764499650957,0.002,3012.3,3011.9,0.72559411]
[1764499651092,0.002,3012.3,3012.2,7.42939307]
[1764499651593,0.002,3012.3,3012.2,7.63319307]
[1764499651997,0.002,3012.3,3012.2,10.95302575]
[1764499654203,0.002,3012.6,3012.3,0.72559411]
[1764499654404,0.002,3012.6,3012.5,3.42389948]
[1764499654630,0.002,3012.6,3012.5,4.60904256]
[1764499654804,0.002,3012.6,3012.5,4.81284256]
[1764499655122,0.002,3012.6,3012.5,4.94581222]
[1764499656709,0.002,3012.6,3012.5,8.26531429]
[1764499660139,0.002,3012.6,3012.5,8.26531429]
[1764499663838,0.002,3012.6,3012.5,8.27051429]
[1764499664037,0.002,3012.6,3012.5,8.47431429]
[1764499664638,0.002,3012.6,3012.5,8.46862287]
[1764499665735,0.002,3012.6,3012.5,8.87412687]
[1764499670739,0.002,3012.6,3012.5,8.67032687]
[1764499670912,0.002,3012.6,3012.5,8.87412687]
[1764499683447,0.002,3012.7,3012.6,1.13109811]
[1764499683647,0.002,3012.8,3012.6,2.85893434]
[1764499683844,0.002,3012.8,3012.7,0.813104]
[1764499684042,0.002,3012.8,3012.7,0.94605377]
[1764499686462,0.002,3012.8,3012.7,4.99092958]
[1764499686662,0.002,3012.8,3012.7,5.77749948]
[1764499686849,0.002,3012.8,3012.7,5.81069229]
[1764499693386,0.002,3012.8,3012.7,5.60689229]
[1764499699895,0.002,3012.8,3012.7,5.40309229]
[1764499701037,0.9537,3012.8,3012.7,5.40309229]
[1764499701474,0.4789,3012.8,3012.7,5.40309229]
[1764499701791,0.002,3012.8,3012.7,5.40309229]
[1764499704296,0.002,3012.8,3012.7,5.60689229]
[1764499705369,0.002,3012.8,3012.7,5.81069229]
[1764499705770,0.002,3012.8,3012.7,5.60689229]
[1764499709577,0.002,3012.8,3012.7,5.81069229]
[1764499710103,0.002,3012.8,3012.7,5.60689229]
[1764499710300,0.002,3013.2,3013.1,4.34550617]
[1764499710503,0.002,3013.3,3013.2,1.13109811]
[1764499710708,0.002,3013.3,3013.2,1.53869811]
[1764499711009,0.002,3013.3,3013.2,1.6716302]
[1764499711302,0.002,3013.3,3013.2,8.00616917]
[1764499711303,0.9946,3013.3,3013.2,8.00616917]
[1764499711972,0.002,3013.3,3013.2,8.00616917]
[1764499712177,0.002,3013.3,3013.2,9.18416315]
[1764499713485,0.002,3013.3,3013.2,9.38796315]
[1764499716031,0.002,3013.3,3013.2,9.18416315]
[1764499720209,0.5009,3013.3,3013.2,9.18416315]
[1764499720433,0.002,3013.3,3013.2,9.38796315]
[1764499720593,0.002,3013.3,3013.2,9.18416315]
[1764499726636,0.002,3013.3,3013.2,12.39525377]
[1764499727206,0.5009,3013.3,3013.2,12.39525377]
[1764499727836,0.5009,3013.3,3013.2,12.18625377]
[1764499728124,0.5009,3013.3,3013.2,12.39525377]
[1764499728747,0.9946,3013.3,3013.2,12.39525377]
[1764499735147,0.5009,3013.3,3013.2,12.39525377]